fUSD/lending_fUSD_20260203
["ID","MTS","AMOUNT","RATE_DAILY","PERIOD"]
[404421714,1770127843734,-500.0,0.00017998,4]
[404421715,1770127843743,-225.18697532,0.00017998,4]
[404421716,1770127843752,-500.0,0.00017998,4]
[404421717,1770127843762,-233.51889341,0.00017998,4]
[404421718,1770127843771,-242.15909246,0.00017998,4]
[404421719,1770127843780,-251.11897888,0.00017998,4]
[404421720,1770127843791,-260.4103811,0.00017998,4]
[404421721,1770127843801,-160.3826751,0.00017998,4]
[404421722,1770127843811,-151.0,0.00017998,4]
[404421723,1770127843821,-270.0455652,0.00017998,4]
[404421724,1770127843831,-322.6107,0.00017998,4]
[404421725,1770127843841,-151.0,0.00017998,4]
[404421726,1770127843851,-280.03725112,0.00017998,4]
[404421727,1770127843862,-334.5472959,0.00017998,4]
[404421728,1770127843872,-151.0,0.00017998,4]
[404421729,1770127843882,-290.39862941,0.00017998,4]
[404421730,1770127843892,-346.92554585,0.00017998,4]
[404421731,1770127843901,-151.0,0.00017998,4]
[404421732,1770127843910,-359.76179104,0.00017998,4]
[404421733,1770127843919,-578.20924308,0.00017998,4]
[404421734,1770127843932,-373.07297731,0.00017998,4]
[404421735,1770127843942,-151.0,0.00017998,4]
[404421736,1770127843953,-301.1433787,0.00017998,4]
[404421737,1770127843963,-386.87667747,0.00017998,4]
[404421738,1770127843972,-599.60298507,0.00017998,4]
[404421739,1770127843981,-621.78829552,0.00017998,4]
[404421740,1770127843991,-401.19111454,0.00017998,4]
[404421741,1770127844000,-151.0,0.00017998,4]
[404421742,1770127844010,-500.0,0.00017998,4]
[404421743,1770127844020,-416.03518578,0.00017998,4]
[404421744,1770127844029,-151.0,0.00017998,4]
[404421745,1770127844038,-500.0,0.00017998,4]
[404421746,1770127844048,-644.79446246,0.00017998,4]
[404421747,1770127844059,-431.42848765,0.00017998,4]
[404421748,1770127844068,-151.0,0.00017998,4]
[404421749,1770127844078,-404.1693775,0.00017998,4]
[404421750,1770127844089,-500.0,0.00017998,4]
[404421751,1770127844098,-447.3913417,0.00017998,4]
[404421752,1770127844108,-151.0,0.00017998,4]
[404421753,1770127844117,-500.0,0.00017998,4]
[404421754,1770127844127,-463.94482134,0.00017998,4]
[404421755,1770127844139,-151.0,0.00017998,4]
[404421756,1770127844157,-500.0,0.00017998,4]
[404421757,1770127844166,-481.11077973,0.00017998,4]
[404421758,1770127844175,-151.0,0.00017998,4]
[404421759,1770127844184,-500.0,0.00017998,4]
[404421760,1770127844193,-498.91187858,0.00017998,4]
[404421761,1770127844203,-500.0,0.00017998,4]
[404421762,1770127844212,-500.0,0.00017998,4]
[404421763,1770127844222,-507.65857495,0.00017998,4]
[404421764,1770127844231,-517.37161808,0.00017998,4]
[404421765,1770127844241,-500.0,0.00017998,4]
[404421766,1770127844250,-536.51436795,0.00017998,4]
[404421767,1770127844259,-500.0,0.00017998,4]
[404421768,1770127844268,-661.07355477,0.00017998,4]
[404421769,1770127844278,-500.0,0.00017998,4]
[404421770,1770127844287,-500.0,0.00017998,4]
[404421771,1770127844296,-200.0,0.00017998,4]
[404421772,1770127844306,-200.0,0.00017998,4]
[404421773,1770127844315,-200.0,0.00017998,4]
[404421774,1770127844326,-176.08748064,0.00017998,4]
[404421775,1770127844337,-200.0,0.00017998,4]
[404421776,1770127844347,-200.0,0.00017998,4]
[404421777,1770127844355,-200.0,0.00017998,4]
[404421778,1770127844365,-200.0,0.00017998,4]
[404421779,1770127844374,-200.0,0.00017998,4]
[404421780,1770127844384,-200.0,0.00017998,4]
[404421781,1770127844397,-200.0,0.00017998,4]
[404421782,1770127844407,-200.0,0.00017998,4]
[404421783,1770127844417,-209.40437684,0.00017998,4]
[404421784,1770127844426,-500.0,0.00017998,4]
[404421785,1770127844436,-200.0,0.00017998,4]
[404421786,1770127844446,-217.15233878,0.00017998,4]
[404421787,1770127844455,-200.0,0.00017998,4]
[404421788,1770127844465,-500.0,0.00017998,4]
[404421789,1770127844475,-225.18697532,0.00017998,4]
[404421790,1770127844485,-500.0,0.00017998,4]
[404421791,1770127844495,-233.51889341,0.00017998,4]
[404421792,1770127844504,-500.0,0.00017998,4]
[404421793,1770127844514,-500.0,0.00017998,4]
[404421794,1770127844523,-242.15909246,0.00017998,4]
[404421795,1770127844533,-500.0,0.00017998,4]
[404421796,1770127844542,-251.11897888,0.00017998,4]
[404421797,1770127844552,-209.40437685,0.00017998,4]
[404421798,1770127844562,-500.0,0.00017998,4]
[404421799,1770127844571,-260.4103811,0.00017998,4]
[404421800,1770127844581,-500.0,0.00017998,4]
[404421801,1770127844591,-270.0455652,0.00017998,4]
[404421802,1770127844600,-500.0,0.00017998,4]
[404421803,1770127844609,-280.03725112,0.00017998,4]
[404421804,1770127844620,-500.0,0.00017998,4]
[404421805,1770127844629,-290.39862941,0.00017998,4]
[404421806,1770127844640,-500.0,0.00017998,4]
[404421807,1770127844650,-301.1433787,0.00017998,4]
[404421808,1770127844664,-209.40437685,0.00017998,4]
[404421809,1770127844673,-200.0,0.00017998,4]
[404421810,1770127844744,-200.0,0.00017998,4]
[404421811,1770127844754,-3047.1579848,0.00017999,2]
[404421812,1770127844763,-421405.92428401,0.00017999,2]
[404421813,1770127845068,-98826.22940979,0.00017999,2]
[404421814,1770127845078,-7527.2726022,0.00017999,2]
[404421815,1770127845087,-300.0,0.00017999,2]
[404421816,1770127845096,-300.0,0.00017999,2]
[404421817,1770127845105,-300.0,0.00017999,2]
[404421818,1770127845114,-84731.41911448,0.00018,2]
[404421819,1770127845125,-6921.46469655,0.00018,2]
[404421820,1770127845136,-638.55537377,0.00018,2]
[404421822,1770127845147,-400.0,0.00018,2]
[404421825,1770127845170,-151.0,0.00013602,2]
[404421827,1770127845180,-1279.23227758,0.00018,2]
[404421829,1770127845190,-511.70554514,0.00018,2]
[404421831,1770127845200,-373.38091558,0.00018,2]
[404421833,1770127845212,-298.6000557,0.00018,2]
[404421836,1770127845226,-8766.39340091,0.00018,2]
[404421838,1770127845236,-3341.54631403,0.00018,2]
[404421840,1770127845247,-2320.58896356,0.00018,2]
[404421843,1770127845261,-1396.78893979,0.00018,2]
[404421845,1770127845273,-752.36175901,0.00018,2]
[404421846,1770127845283,-1542.12434419,0.00018,2]
[404421847,1770127845293,-40807.69323441,0.00018,2]
[404421848,1770127845304,-40208.43170259,0.00018,2]
[404421852,1770127845535,-151.0,0.00013602,2]
[404421853,1770127845545,-153.69162209,0.00013698,2]
[404421854,1770127845624,-359.05837791,0.00013698,2]
[404421855,1770127845633,-512.75,0.00013698,2]
[404421856,1770127845644,-512.75,0.00013698,2]
[404421857,1770127845655,-512.75,0.00013698,2]
[404421858,1770127845666,-479.46117677,0.00013698,2]
[404421859,1770127845678,-33.28882323,0.00013698,2]
[404421860,1770127845688,-512.75,0.00013698,2]
[404421861,1770127845699,-512.75,0.00013698,2]
[404421862,1770127845710,-512.75,0.00013698,2]
[404421863,1770127845721,-512.75,0.00013698,2]
[404421864,1770127845733,-2471.026,0.00017022,2]
[404421865,1770127845744,-6422311.7969924,0.00018,2]
[404421866,1770127845755,-1001565.34946942,0.00018,2]
[404421869,1770127846310,-1678.52471264,0.00011099,2]
[404421872,1770127866364,1622.028404,8.178e-05,2]
[404421873,1770128052871,165.13,6.803e-05,2]
[404421876,1770128212715,500.0,8.253e-05,2]
[404421877,1770128212754,320.60965673,8.253e-05,2]
[404421878,1770128212798,239.36272721,8.253e-05,2]
[404421879,1770128213053,500.0,8.253e-05,2]
[404421880,1770128213196,618.70246796,8.253e-05,2]
[404421881,1770128213702,500.0,8.253e-05,2]
[404421882,1770128213746,500.0,8.253e-05,2]
[404421883,1770128217154,500.0,8.253e-05,2]
[404421884,1770128217207,500.0,8.253e-05,2]
[404421885,1770128217269,500.0,8.253e-05,2]
[404421886,1770128217323,500.0,8.253e-05,2]
[404421887,1770128217381,500.0,8.253e-05,2]
[404421888,1770128217438,500.0,8.253e-05,2]
[404421889,1770128217492,500.0,8.253e-05,2]
[404421890,1770128217559,500.0,8.253e-05,2]
[404421891,1770128217608,500.0,8.253e-05,2]
[404421892,1770128217661,500.0,8.253e-05,2]
[404421893,1770128217704,161.59822198,8.253e-05,2]
[404421894,1770128217751,500.0,8.253e-05,2]
[404421895,1770128217824,500.0,8.253e-05,2]
[404421896,1770128217873,500.0,8.253e-05,2]
[404421897,1770128217923,159.73692612,8.253e-05,2]
[404421898,1770128217951,340.26307388,8.253e-05,2]
[404421899,1770128218004,500.0,8.253e-05,2]
[404421900,1770128218057,500.0,8.253e-05,2]
[404421901,1770128218112,500.0,8.253e-05,2]
[404421902,1770128218368,500.0,8.253e-05,2]
[404421903,1770128218429,500.0,8.253e-05,2]
[404421904,1770128218483,500.0,8.253e-05,2]
[404421905,1770128218531,500.0,8.253e-05,2]
[404421906,1770128218582,500.0,8.253e-05,2]
[404421907,1770128218648,500.0,8.253e-05,2]
[404421908,1770128218696,500.0,8.253e-05,2]
[404421909,1770128218745,500.0,8.253e-05,2]
[404421910,1770128218812,500.0,8.253e-05,2]
[404421911,1770128218876,500.0,8.253e-05,2]
[404421912,1770128218947,500.0,8.253e-05,2]
[404421913,1770128222055,300.0,8.253e-05,2]
[404421914,1770128282939,150.0,8.253e-05,2]
[404421915,1770128283212,300.0,8.253e-05,2]
[404421916,1770128289403,151.0,8.251e-05,2]
[404421917,1770128308414,1200.0,8.253e-05,2]
[404421918,1770128341715,300.0,8.253e-05,2]
[404421923,1770128401723,258.74692612,8.253e-05,2]
[404421924,1770128401746,941.25307388,8.253e-05,2]
[404421925,1770128402056,300.0,8.253e-05,2]
[404421932,1770128461605,300.0,8.253e-05,2]
[404421933,1770128462838,150.0,8.253e-05,2]
[404421934,1770128462883,300.0,8.253e-05,2]
[404421943,1770128492735,3177.076,8.089e-05,2]
[404421944,1770128492846,313.52,8.089e-05,2]
[404421950,1770128506337,4518.16092612,8.154e-05,2]
[404421951,1770128506363,10000.01,8.154e-05,2]
[404421952,1770128506389,10000.01,8.154e-05,2]
[404421953,1770128506417,10000.01,8.154e-05,2]
[404421954,1770128506445,10000.01,8.154e-05,2]
[404421955,1770128506473,10000.01,8.154e-05,2]
[404421956,1770128506499,10000.01,8.154e-05,2]
[404421957,1770128506525,10000.01,8.154e-05,2]
[404421958,1770128506551,10000.01,8.154e-05,2]
[404421972,1770128552506,167.55390904,8.153e-05,2]
[404421973,1770128552615,224.42675972,8.153e-05,2]
[404421974,1770128554126,500.0,8.153e-05,2]
[404421975,1770128570413,500.0,8.153e-05,2]
[404421976,1770128570469,500.0,8.153e-05,2]
[404421977,1770128570527,466.15982219,8.153e-05,2]
[404421978,1770128581769,300.0,8.153e-05,2]
[404421979,1770128608511,1016.0,8.153e-05,2]
[404421980,1770128642428,150.0,8.153e-05,2]
[404421981,1770128642631,300.0,8.153e-05,2]
[404421982,1770128701681,300.0,8.153e-05,2]
[404421983,1770128701788,1200.0,8.153e-05,2]
[404421984,1770128822384,150.0,8.153e-05,2]
[404421985,1770128822747,245.0,8.153e-05,2]
[404421986,1770128825330,3980.86950905,8.054e-05,2]
[404421987,1770128825359,10000.01,8.054e-05,2]
[404421988,1770128825387,10000.01,8.054e-05,2]
[404421989,1770128825415,10000.01,8.054e-05,2]
[404421990,1770128825443,10000.01,8.054e-05,2]
[404421991,1770128825471,10000.01,8.054e-05,2]
[404421992,1770128825497,10000.01,8.054e-05,2]
[404421993,1770128825524,10000.01,8.054e-05,2]
[404421994,1770128825552,10000.01,8.054e-05,2]
[404421995,1770128825579,10000.01,8.054e-05,2]
[404421996,1770128838411,303.54,0.00023,120]
[404421997,1770128848527,500.0,7.7e-05,2]
[404421998,1770128850630,1000.0,7.8e-05,2]
[404421999,1770128852727,1500.0,7.9e-05,2]
[404422000,1770128854809,2000.0,8e-05,2]
[404422001,1770128889441,0.01,8.051e-05,2]
[404422002,1770128889461,150.99,8.051e-05,2]
[404422003,1770128913118,157.0987318,8.053e-05,2]
[404422004,1770128941713,300.0,8.053e-05,2]
[404422005,1770129002008,227.0,8.053e-05,2]
[404422006,1770129002052,1200.0,8.053e-05,2]
[404422007,1770129002346,150.0,8.053e-05,2]
[404422024,1770129032092,-9622.37036908,8.054e-05,2]
[404422025,1770129032103,-56937.45988725,8.054e-05,2]
[404422026,1770129032114,-2730.65588453,8.054e-05,2]
[404422027,1770129032152,-259.85,8.054e-05,2]
[404422028,1770129032214,-1039.00956503,8.054e-05,2]
[404422029,1770129032226,-2484.20450744,8.054e-05,2]
[404422030,1770129032237,-9552.01025443,8.054e-05,2]
[404422031,1770129032281,-1052.16948953,8.054e-05,2]
[404422036,1770129038139,-16317.37459625,8.054e-05,2]
[404422037,1770129038151,-2969.80208559,8.054e-05,2]
[404422038,1770129038201,-3303054.13385182,8.054e-05,2]
[404422039,1770129038211,-89306.5331,8.054e-05,2]
[404422040,1770129038220,-61542.61000504,8.054e-05,2]
[404422041,1770129038230,-250.0,8.054e-05,2]
[404422042,1770129038239,-217.0,8.054e-05,2]
[404422043,1770129038248,-257.44644732,8.054e-05,2]
[404422044,1770129038258,-250.0,8.121e-05,2]
[404422045,1770129038267,-2544.7096,8.154e-05,2]
[404422046,1770129038276,-12617.988487,8.178e-05,2]
[404422047,1770129038286,-1000.0,8.218e-05,2]
[404422048,1770129038295,-500.0,8.219e-05,2]
[404422049,1770129038304,-500.0,8.219e-05,2]
[404422050,1770129038313,-533.09172757,8.219e-05,2]
[404422051,1770129038323,-500.0,8.219e-05,2]
[404422052,1770129038332,-500.0,8.219e-05,2]
[404422054,1770129038341,-500.0,8.219e-05,2]
[404422056,1770129038350,-9999.99,8.311e-05,2]
[404422058,1770129038360,-150.99,8.311e-05,2]
[404422060,1770129038369,-6484.12,8.311e-05,2]
[404422061,1770129038379,-299.99,8.311e-05,2]
[404422062,1770129038388,-150.99,8.311e-05,2]
[404422064,1770129038397,-9999.99,8.311e-05,2]
[404422066,1770129038411,-999.99,8.325e-05,2]
[404422068,1770129038420,-36290.60126347,8.382e-05,2]
[404422070,1770129038429,-150.01400954,8.383e-05,2]
[404422072,1770129038439,-917.0,8.45e-05,2]
[404422074,1770129038448,-407.0,8.467e-05,2]
[404422075,1770129038457,-25175.95,8.48e-05,2]
[404422076,1770129038467,-672.0,8.484e-05,2]
[404422077,1770129038476,-998.0,8.5e-05,2]
[404422078,1770129038485,-367.0,8.503e-05,2]
[404422079,1770129038495,-165.13,8.504e-05,2]
[404422080,1770129038504,-1712.0,8.517e-05,2]
[404422082,1770129038513,-457.0,8.52e-05,2]
[404422083,1770129038522,-33292.3487,8.526e-05,2]
[404422085,1770129038531,-316.0,8.537e-05,2]
[404422087,1770129038542,-301.0,8.554e-05,2]
[404422089,1770129038551,-486.0,8.571e-05,2]
[404422091,1770129038560,-441.0,8.588e-05,2]
[404422093,1770129038570,-380.0,8.605e-05,2]
[404422095,1770129038579,-430.0,8.622e-05,2]
[404422097,1770129038588,-207.0,8.639e-05,2]
[404422100,1770129038598,-1829.0,8.645e-05,2]
[404422101,1770129038608,-184.0,8.656e-05,2]
[404422104,1770129038617,-1968.0,8.663e-05,2]
[404422106,1770129038626,-742.0,8.68e-05,2]
[404422107,1770129038635,-1437.0,8.697e-05,2]
[404422110,1770129038645,-1680.0,8.858e-05,2]
[404422112,1770129038654,-255.0,8.858e-05,2]
[404422114,1770129038664,-300.0,8.859e-05,2]
[404422116,1770129038673,-300.0,8.859e-05,2]
[404422118,1770129038683,-300.0,8.859e-05,2]
[404422120,1770129038692,-360.95256819,8.859e-05,2]
[404422122,1770129038702,-250.0,8.859e-05,2]
[404422124,1770129038711,-300.0,8.859e-05,2]
[404422126,1770129038720,-500.0,8.859e-05,2]
[404422128,1770129038730,-416.39111869,8.9e-05,2]
[404422130,1770129038739,-1163.58,8.969e-05,2]
[404422132,1770129038748,-193.0,8.969e-05,2]
[404422134,1770129038757,-1830.15,9.1e-05,2]
[404422136,1770129038767,-166.51015303,9.133e-05,2]
[404422138,1770129038775,-500.0,9.133e-05,2]
[404422140,1770129038788,-562.28195765,9.133e-05,2]
[404422142,1770129038798,-500.0,9.133e-05,2]
[404422144,1770129038807,-500.55069623,9.133e-05,2]
[404422146,1770129038816,-500.0,9.133e-05,2]
[404422148,1770129038826,-500.0,9.133e-05,2]
[404422150,1770129038835,-500.0,9.133e-05,2]
[404422152,1770129038844,-500.0,9.133e-05,2]
[404422154,1770129038853,-500.0,9.133e-05,2]
[404422156,1770129038863,-500.0,9.133e-05,2]
[404422158,1770129038872,-1163.58,9.243e-05,2]
[404422160,1770129038882,-500.0,9.407e-05,2]
[404422162,1770129038892,-1163.58,9.517e-05,2]
[404422164,1770129038902,-500.0,9.681e-05,2]
[404422166,1770129038911,-500.0,9.681e-05,2]
[404422168,1770129038921,-2351.0,9.744e-05,2]
[404422170,1770129038930,-433.0,9.744e-05,2]
[404422172,1770129038940,-1163.58,9.791e-05,2]
[404422174,1770129038951,-205.0,9.8e-05,2]
[404422176,1770129038960,-500.0,9.955e-05,2]
[404422178,1770129038971,-164.01557148,0.0001,2]
[404422180,1770129038980,-164.01557148,0.0001,2]
[404422182,1770129038990,-151.0,0.0001,2]
[404422184,1770129039000,-151.0,0.0001,2]
[404422186,1770129039013,-151.0,0.0001,2]
[404422188,1770129039023,-151.0,0.0001,2]
[404422190,1770129039032,-151.0,0.0001,2]
[404422192,1770129039042,-151.0,0.0001,2]
[404422194,1770129039054,-151.0,0.0001,2]
[404422196,1770129039064,-151.0,0.0001,2]
[404422199,1770129039074,-151.0,0.0001,2]
[404422201,1770129039085,-151.0,0.0001,2]
[404422202,1770129039094,-151.0,0.0001,2]
[404422204,1770129039104,-151.0,0.0001,2]
[404422206,1770129039114,-151.0,0.0001,2]
[404422208,1770129039123,-151.0,0.0001,2]
[404422210,1770129039133,-151.0,0.0001,2]
[404422212,1770129039142,-151.0,0.0001,2]
[404422214,1770129039152,-151.0,0.0001,2]
[404422217,1770129039162,-151.0,0.0001,2]
[404422219,1770129039172,-151.0,0.0001,2]
[404422221,1770129039185,-151.0,0.0001,2]
[404422223,1770129039194,-500.0,0.0001,2]
[404422225,1770129039204,-1934.44747512,0.0001,2]
[404422227,1770129039213,-200.0,0.0001,2]
[404422229,1770129039222,-176.08748064,0.0001,2]
[404422231,1770129039231,-2739.81280514,0.0001,2]
[404422233,1770129039241,-22830.03957083,0.0001,2]
[404422235,1770129039251,-269.09178599,0.0001,2]
[404422237,1770129039261,-824.69144558,0.0001,2]
[404422238,1770129039271,-824.69144558,0.0001,2]
[404422241,1770129039291,-1163.58,0.00010065,2]
[404422244,1770129039306,-260.23313591,0.000101,2]
[404422246,1770129039319,-1852.42,0.00010135,2]
[404422249,1770129039332,-165.13,0.00010204,2]
[404422251,1770129039342,-1163.58,0.00010339,2]
[404422253,1770129039355,-500.0,0.00010548,2]
[404422256,1770129039368,-200.0,0.00010548,2]
[404422258,1770129039381,-1163.58,0.00010613,2]
[404422260,1770129039394,-250.0,0.00010642,2]
[404422263,1770129039407,-268.69527082,0.000107,2]
[404422265,1770129039420,-3292.0,0.00010719,2]
[404422267,1770129039432,-736.0,0.00010719,2]
[404422270,1770129039444,-1029.43598608,0.000108,2]
[404422272,1770129039455,-1163.58,0.00010887,2]
[404422274,1770129039465,-2500.0,0.000109,3]
[404422276,1770129039478,-166.66,0.00010959,2]
[404422278,1770129039491,-500.0,0.00011014,2]
[404422279,1770129039503,-166.66,0.00011068,2]
[404422280,1770129039515,-500.0,0.00011096,2]
[404422281,1770129039527,-200.0,0.00011096,2]
[404422282,1770129039546,-8188.57656396,0.00011099,2]
[404422283,1770129039558,-8188.57656396,0.00011099,2]
[404422285,1770129039571,-8188.57656396,0.00011099,2]
[404422287,1770129039583,-52502.69927179,0.00011099,2]
[404422290,1770129039597,-52502.69927172,0.00011099,2]
[404422292,1770129039610,-52502.69927172,0.00011099,2]
[404422295,1770129039623,-1163.58,0.00011161,2]
[404422297,1770129039636,-166.66,0.00011178,2]
[404422299,1770129039648,-18103.07,0.00011233,2]
[404422301,1770129039660,-150.0,0.00011233,2]
[404422304,1770129039674,-166.66,0.00011288,2]
[404422307,1770129039692,-8188.57656396,0.00011335,2]
[404422309,1770129039706,-52502.69927172,0.00011335,2]
[404422312,1770129039721,-166.66,0.00011397,2]
[404422314,1770129039734,-1163.58,0.00011435,2]
[404422317,1770129039746,-166.66,0.00011507,2]
[404422319,1770129039756,-507.65857495,0.00011644,2]
[404422321,1770129039767,-200.0,0.00011644,2]
[404422323,1770129039778,-1163.58,0.00011709,2]
[404422326,1770129039793,-1252.0,0.0001179,2]
[404422328,1770129039804,-4609.0,0.0001179,2]
[404422330,1770129039814,-1163.58,0.00011983,2]
[404422332,1770129039824,-1163.58,0.00012257,2]
[404422334,1770129039834,-269.09178599,0.00012427,2]
[404422336,1770129039846,-8188.57656396,0.00012428,2]
[404422338,1770129039862,-52502.69927172,0.00012428,2]
[404422341,1770129039874,-1163.58,0.00012531,2]
[404422343,1770129039885,-193732.81044148,0.0001269,2]
[404422345,1770129039895,-1163.58,0.00012805,2]
[404422348,1770129039908,-151.0,0.00012899,2]
[404422350,1770129039919,-4928.42568292,0.00012902,2]
[404422352,1770129039930,-13006.19335253,0.00012902,2]
[404422354,1770129039942,-22944.46674721,0.00012902,2]
[404422357,1770129039954,-6453.0,0.00012969,2]
[404422359,1770129039966,-876.0,0.00012973,2]
[404422362,1770129039987,-5613.98559882,0.00013,2]
[404422364,1770129039999,-4434.56277461,0.00013,2]
[404422366,1770129040014,-5354.65944007,0.0001305,2]
[404422369,1770129040027,-1163.58,0.00013079,2]
[404422371,1770129040041,-150.01400954,0.0001308,2]
[404422373,1770129040055,-1163.58,0.00013353,2]
[404422376,1770129040068,-183.76045452,0.000135,2]
[404422378,1770129040082,-8188.57656396,0.00013522,2]
[404422380,1770129040094,-52502.69927172,0.00013522,2]
[404422382,1770129040106,-1163.58,0.00013627,2]
[404422385,1770129040117,-35766.0,0.00013687,2]
[404422387,1770129040129,-500.0,0.00013698,2]
[404422389,1770129040141,-1483.9891503,0.00013698,2]
[404422392,1770129040154,-189.27951938,0.00013698,2]
[404422394,1770129040166,-500.0,0.00013698,2]
[404422397,1770129040177,-501.81901913,0.00013698,2]
[404422399,1770129040188,-500.0,0.00013698,2]
[404422402,1770129040199,-500.0,0.00013698,2]
[404422404,1770129040211,-500.0,0.00013698,2]
[404422406,1770129040222,-500.0,0.00013698,2]
[404422408,1770129040233,-500.0,0.00013698,2]
[404422411,1770129040245,-500.0,0.00013698,2]
[404422413,1770129040256,-500.0,0.00013698,2]
[404422415,1770129040267,-500.0,0.00013698,2]
[404422418,1770129040282,-500.0,0.00013698,2]
[404422420,1770129040295,-500.0,0.00013698,2]
[404422422,1770129040307,-500.0,0.00013698,2]
[404422425,1770129040319,-500.0,0.00013698,2]
[404422427,1770129040331,-500.0,0.00013698,2]
[404422429,1770129040342,-500.0,0.00013698,2]
[404422431,1770129040354,-500.0,0.00013698,2]
[404422434,1770129040366,-500.0,0.00013698,2]
[404422436,1770129040376,-500.0,0.00013698,2]
[404422438,1770129040387,-558.31479011,0.00013698,2]
[404422440,1770129040398,-500.0,0.00013698,2]
[404422443,1770129040410,-500.0,0.00013698,2]
[404422445,1770129040421,-500.0,0.00013698,2]
[404422447,1770129040432,-500.0,0.00013698,2]
[404422449,1770129040443,-505.6105481,0.00013698,2]
[404422452,1770129040456,-500.0,0.00013698,2]
[404422454,1770129040467,-500.0,0.00013698,2]
[404422456,1770129040478,-500.0,0.00013698,2]
[404422458,1770129040490,-500.0,0.00013698,2]
[404422460,1770129040500,-500.0,0.00013698,2]
[404422463,1770129040512,-500.0,0.00013698,2]
[404422465,1770129040523,-500.0,0.00013698,2]
[404422467,1770129040534,-500.0,0.00013698,2]
[404422469,1770129040548,-500.0,0.00013698,2]
[404422471,1770129040559,-500.0,0.00013698,2]
[404422474,1770129040570,-500.0,0.00013698,2]
[404422476,1770129040582,-500.0,0.00013698,2]
[404422478,1770129040593,-509.06540724,0.00013698,2]
[404422480,1770129040604,-500.0,0.00013698,2]
[404422483,1770129040617,-500.0,0.00013698,2]
[404422485,1770129040628,-500.0,0.00013698,2]
[404422487,1770129040649,-500.0,0.00013698,2]
[404422489,1770129040660,-500.0,0.00013698,2]
[404422491,1770129040671,-500.0,0.00013698,2]
[404422494,1770129040684,-151.96294497,0.00013698,2]
[404422496,1770129040696,-500.0,0.00013698,2]
[404422498,1770129040708,-500.0,0.00013698,2]
[404422500,1770129040719,-500.0,0.00013698,2]
[404422503,1770129040729,-587.89105672,0.00013698,2]
[404422505,1770129040741,-500.0,0.00013698,2]
[404422507,1770129040752,-500.0,0.00013698,2]
[404422509,1770129040763,-500.0,0.00013698,2]
[404422512,1770129040774,-500.0,0.00013698,2]
[404422514,1770129040787,-500.0,0.00013698,2]
[404422516,1770129040799,-500.0,0.00013698,2]
[404422518,1770129040810,-500.0,0.00013698,2]
[404422521,1770129040821,-500.0,0.00013698,2]
[404422523,1770129040833,-500.0,0.00013698,2]
[404422525,1770129040844,-500.0,0.00013698,2]
[404422527,1770129040855,-500.0,0.00013698,2]
[404422529,1770129040865,-500.0,0.00013698,2]
[404422532,1770129040877,-500.0,0.00013698,2]
[404422534,1770129040888,-340.45778603,0.00013698,2]
[404422536,1770129040900,-500.0,0.00013698,2]
[404422539,1770129040912,-500.0,0.00013698,2]
[404422541,1770129040923,-500.0,0.00013698,2]
[404422543,1770129040934,-500.0,0.00013698,2]
[404422545,1770129040946,-500.0,0.00013698,2]
[404422549,1770129040957,-500.0,0.00013698,2]
[404422552,1770129040969,-500.0,0.00013698,2]
[404422555,1770129040980,-500.0,0.00013698,2]
[404422557,1770129040991,-500.0,0.00013698,2]
[404422559,1770129041002,-620.13152007,0.00013698,2]
[404422563,1770129041026,-500.0,0.00013698,2]